bitfinex/quotes_ETHUSD_20250801
["timestamp","ask_amount","ask_price","bid_price","bid_amount"]
[1754008564291,1.5556,3682.5,3681.3,0.4668]
[1754008564292,0.4514,3682.4,3681.3,4.318]
[1754008564494,1.5556,3682.5,3681.4,0.4668]
[1754008564722,1.5556,3682.5,3681.8,2.71602305]
[1754008565036,1.5556,3683.5,3682.0,3.55]
[1754008565218,0.5025291,3683.4,3682.2,0.55]
[1754008565420,0.25126455,3683.3,3682.4,0.55]
[1754008565619,0.25126455,3683.2,3682.6,0.55]
[1754008565794,1.5556,3683.8,3683.4,2.71487114]
[1754008566129,0.25124685,3683.7,3683.5,0.4668]
[1754008566336,0.25124685,3683.6,3683.5,3.18160928]
[1754008566635,0.25113509,3683.6,3683.5,4.39833595]
[1754008566788,0.25113509,3683.6,3683.1,7.03207677]
[1754008566789,1.5556,3684.4,3683.6,2.7147268]
[1754008566983,0.95366101,3684.3,3683.7,4.317]
[1754008567183,0.50226101,3684.2,3682.8,4.317]
[1754008567418,3.50226101,3684.1,3681.8,1.2168]
[1754008567724,30.0,3683.8,3682.0,3.0]
[1754008567922,1.80672437,3683.7,3682.9,2.71519898]
[1754008568132,0.25112437,3683.6,3682.8,4.316]
[1754008568299,2.007,3683.5,3682.9,4.316]
[1754008568505,2.25812437,3683.4,3682.6,4.316]
[1754008568692,0.4514,3683.4,3682.6,4.316]
[1754008568893,1.5556,3683.3,3682.4,4.316]
[1754008569122,0.6521,3683.2,3682.3,4.316]
[1754008569433,1.5556,3683.1,3682.3,4.316]
[1754008569790,0.25082184,3683.0,3682.3,4.316]
[1754008570220,1.5556,3683.1,3682.3,4.316]
[1754008570602,1.5556,3683.1,3682.3,7.03167185]
[1754008571226,0.25092666,3683.0,3682.5,0.136]
[1754008571400,2.007,3682.9,3682.5,4.452]
[1754008571614,0.136,3683.1,3682.5,4.452]
[1754008571808,1.5556,3683.3,3682.7,0.136]
[1754008572008,1.5556,3683.3,3683.0,0.136]
[1754008572222,0.25093539,3683.2,3683.0,0.136]
[1754008572745,0.25093539,3683.2,3682.9,2.71519516]
[1754008572947,0.5874,3683.8,3683.1,0.136]
[1754008573116,0.4514,3683.3,3682.6,4.316]
[1754008573315,0.4514,3683.3,3682.1,2.71577577]
[1754008573316,0.25094725,3683.2,3682.1,2.71577577]
[1754008573637,1.80654725,3683.2,3682.2,4.316]
[1754008573845,1.5556,3683.2,3682.8,0.136]
[1754008574012,0.136,3683.4,3682.7,0.136]
[1754008574218,2.007,3683.1,3682.7,0.136]
[1754008574418,1.5556,3683.0,3682.7,0.136]
[1754008574838,0.136,3683.4,3682.7,0.136]
[1754008575145,0.25094316,3683.3,3682.9,0.136]
[1754008575346,0.25094316,3683.2,3682.4,0.55]
[1754008575554,0.136,3683.7,3683.1,0.136]
[1754008575761,1.80659306,3683.6,3683.1,0.136]
[1754008576052,2.25799306,3683.5,3683.1,0.136]
[1754008576208,0.25099306,3683.4,3683.1,0.136]
[1754008576753,1.5616,3683.6,3683.1,0.136]
[1754008576913,0.25100744,3683.5,3682.8,4.316]
[1754008577118,1.5616,3684.4,3683.5,2.85075138]
[1754008577355,0.50210965,3684.3,3683.4,2.85083121]
[1754008577655,0.50210965,3684.2,3683.3,1.6608]
[1754008577858,0.50210965,3684.1,3683.9,0.136]
[1754008578063,0.50210965,3684.0,3683.9,5.7145145]
[1754008578356,0.5021238,3684.0,3683.9,1.6608]
[1754008578554,0.5021238,3684.0,3683.9,0.136]
[1754008579033,0.4491,3684.3,3683.9,0.136]
[1754008579237,1.5616,3684.4,3683.9,0.136]
[1754008579438,2.0107,3684.3,3683.9,0.136]
[1754008579634,1.5616,3684.2,3683.9,0.136]
[1754008579852,2.0107,3684.1,3682.8,1.6608]
[1754008580158,1.5616,3684.0,3683.6,0.136]
[1754008580366,1.5616,3684.5,3683.6,0.136]
[1754008580665,0.136,3684.3,3683.6,4.451]
[1754008580963,1.5616,3684.5,3684.0,0.136]
[1754008581163,0.13973434,3685.8,3683.8,1.2168]
[1754008581322,0.136,3685.0,3684.4,0.136]
[1754008581523,0.4491,3685.1,3684.4,4.315]
[1754008581827,0.136,3685.2,3684.7,0.136]
[1754008582055,2.0107,3685.8,3684.7,0.136]
[1754008582361,2.0107,3685.8,3684.4,4.315]
[1754008582362,0.136,3685.5,3685.0,0.136]
[1754008582530,2.26140054,3685.4,3684.4,4.315]
[1754008582727,0.136,3685.5,3684.8,0.136]
[1754008583064,1.5616,3685.6,3684.6,7.02794541]
[1754008583225,1.5616,3685.6,3685.2,0.136]
[1754008583560,0.61886,3685.5,3685.1,0.136]
[1754008583764,1.5616,3685.6,3685.1,0.136]
[1754008583953,2.0107,3686.0,3685.0,2.7136312]
[1754008584148,0.136,3685.9,3685.4,0.136]
[1754008584349,0.136,3686.2,3685.7,0.136]
[1754008584564,1.5616,3686.1,3685.7,0.136]
[1754008585274,0.136,3686.4,3685.7,0.136]
[1754008585466,0.21467,3686.3,3685.7,0.136]
[1754008585657,0.136,3686.4,3685.7,0.136]
[1754008585857,2.0107,3686.5,3685.5,7.02731528]
[1754008585858,2.0107,3686.5,3685.5,4.314]
[1754008586027,1.5616,3686.5,3686.1,0.136]
[1754008586230,4.314,3687.3,3686.1,0.136]
[1754008586231,1.5616,3686.9,3686.4,0.136]
[1754008586874,2.0107,3686.8,3686.4,0.136]
[1754008587083,1.5616,3686.7,3686.4,0.136]
[1754008587451,1.5616,3686.6,3686.4,0.136]
[1754008587780,0.136,3686.5,3685.8,0.136]
[1754008587989,0.136,3686.5,3685.8,2.71310776]
[1754008588283,1.5616,3686.6,3686.3,0.136]
[1754008588686,2.0107,3687.0,3685.8,1.603]
[1754008588992,2.0107,3687.0,3686.5,0.136]
[1754008589204,1.5616,3686.9,3686.5,0.136]
[1754008589895,0.4491,3688.0,3686.4,2.71261039]
[1754008590056,0.5843,3687.5,3686.9,0.136]
[1754008590257,1.5616,3687.4,3686.9,0.136]
[1754008590492,2.0107,3687.3,3686.9,0.136]
[1754008590699,0.1352,3687.5,3686.9,0.136]
[1754008590993,2.0107,3687.2,3686.9,0.136]
[1754008591195,0.4491,3687.2,3686.9,0.136]
[1754008591355,1.5616,3687.1,3686.9,0.136]
[1754008591559,1.5616,3687.3,3686.9,0.136]
[1754008591976,1.5616,3687.3,3687.1,0.136]
[1754008592693,2.0107,3687.2,3685.9,2.153]
[1754008592892,1.5616,3687.1,3686.0,4.311]
[1754008593054,2.0107,3687.1,3686.6,0.136]
[1754008593254,0.4491,3687.0,3686.3,0.136]
[1754008593494,0.136,3686.8,3686.3,0.136]
[1754008593659,2.0107,3686.7,3686.3,0.136]
[1754008593855,2.0107,3686.6,3686.3,0.136]
[1754008594055,1.5616,3686.5,3686.3,0.136]
[1754008594991,1.5616,3686.4,3686.3,0.136]
[1754008595171,2.0107,3686.4,3685.7,4.311]
[1754008595363,2.0107,3686.4,3686.0,0.136]
[1754008595563,2.0107,3686.3,3686.0,0.136]
[1754008595758,1.5616,3686.2,3686.0,0.136]
[1754008595959,1.5616,3686.2,3685.4,4.311]
[1754008595960,2.0107,3686.2,3685.4,4.311]
[1754008596176,1.5616,3686.1,3685.8,0.136]
[1754008596392,2.0107,3686.1,3685.8,0.136]
[1754008596589,0.61901209,3686.0,3685.3,0.136]
[1754008596809,0.136,3685.8,3685.3,0.136]
[1754008597116,2.0107,3685.7,3685.2,0.136]
[1754008597410,2.0107,3685.6,3685.2,0.136]
[1754008597591,33.0,3685.3,3685.2,0.136]
[1754008598110,33.0,3685.3,3683.6,2.71473502]
[1754008598111,2.1467,3685.3,3683.7,4.311]
[1754008598263,0.136,3684.6,3684.0,0.136]
[1754008598459,2.0107,3684.5,3684.0,0.136]
[1754008598696,0.136,3684.6,3684.0,0.136]
[1754008598888,2.0107,3684.4,3684.0,0.136]
[1754008599177,1.5616,3684.3,3684.0,0.136]
[1754008599501,0.136,3684.6,3684.0,0.136]
[1754008599819,2.0107,3684.5,3684.0,0.136]
[1754008600113,0.136,3684.1,3683.5,0.136]
[1754008600321,1.5616,3684.0,3683.5,0.136]
[1754008600463,2.0107,3683.9,3683.5,0.136]
[1754008600663,0.4491,3683.9,3683.5,0.136]
[1754008600873,1.5616,3683.8,3683.5,0.136]
[1754008601074,0.136,3684.1,3683.5,0.136]
[1754008601762,1.5616,3684.0,3683.5,0.136]
[1754008601963,1.5616,3683.9,3683.5,0.136]
[1754008602315,2.0107,3683.9,3683.5,0.136]
[1754008602470,0.4491,3683.9,3683.5,0.136]
[1754008603002,1.5616,3684.4,3683.2,0.444]
[1754008603160,1.5616,3684.4,3683.5,2.71480276]
[1754008603812,1.5616,3684.4,3683.3,2.71489568]
[1754008603980,1.5616,3684.4,3683.4,2.71485904]
[1754008604159,1.5616,3684.4,3683.5,2.71479144]
[1754008604779,1.5616,3684.4,3683.2,1.603]
[1754008605087,1.5616,3684.4,3683.6,2.71468503]
[1754008605294,1.5616,3684.9,3683.7,4.755]
[1754008605523,0.4491,3684.8,3683.3,0.444]
[1754008605736,33.0,3684.6,3683.3,4.311]
[1754008605899,3.0,3684.4,3683.3,7.02593652]
[1754008606101,0.815915,3685.1,3683.3,4.311]
[1754008606303,9.99236076,3690.8,3683.3,4.311]
[1754008606304,1.4919,3685.4,3683.7,3.55]
[1754008606506,1.4919,3685.4,3684.0,2.71444082]
[1754008606798,1.4919,3685.4,3683.8,1.5921]
[1754008606799,0.4571,3685.3,3684.1,4.323]
[1754008607019,1.6868,3685.2,3684.1,4.323]
[1754008607613,1.4919,3685.2,3684.1,4.323]
[1754008607813,1.4919,3685.2,3684.2,2.71423521]
[1754008608301,1.4919,3685.2,3684.1,4.323]
[1754008608540,1.4919,3685.2,3684.3,2.71415592]
[1754008608741,1.4919,3685.2,3684.2,2.71428979]
[1754008608912,1.4919,3685.2,3684.5,2.7140468]
[1754008609125,1.4919,3685.2,3684.4,2.71413326]
[1754008609297,1.4919,3685.7,3684.3,0.55]
[1754008609506,1.4919,3685.7,3684.7,2.71387485]
[1754008609726,1.4919,3685.7,3684.6,2.71399697]
[1754008610100,1.4919,3685.7,3684.8,2.71379267]
[1754008610305,1.4919,3685.7,3684.4,1.5921]
[1754008611243,1.4919,3685.7,3684.8,2.7138385]
[1754008611456,1.4919,3685.7,3684.9,2.71375727]
[1754008611601,1.4919,3685.7,3684.7,5.9111]
[1754008612035,0.4571,3685.6,3684.7,7.03292151]
[1754008612334,0.4571,3685.6,3684.8,2.71384827]
[1754008612726,0.4571,3685.6,3684.7,7.03291037]
[1754008613112,0.136,3685.7,3684.8,1.159]
[1754008613313,1.4919,3685.9,3685.5,0.136]
[1754008613518,0.25072378,3685.8,3685.5,0.136]
[1754008613839,1.949,3685.7,3684.7,4.7521]
[1754008614042,1.949,3685.7,3685.3,0.136]
[1754008614202,1.4919,3685.6,3685.3,0.136]
[1754008614400,1.949,3685.6,3685.3,0.136]
[1754008614605,1.949,3685.5,3684.7,4.314]
[1754008614817,2.085,3685.5,3685.0,0.136]
[1754008615005,0.5931,3685.5,3685.0,0.136]
[1754008615205,1.4919,3685.4,3685.0,0.136]
[1754008615631,0.136,3685.5,3685.0,0.136]
[1754008615830,1.4919,3685.3,3685.0,0.136]
[1754008616030,0.4571,3685.4,3685.0,0.136]
[1754008616235,1.949,3685.3,3685.0,0.136]
[1754008616543,1.949,3685.2,3684.4,4.311]
[1754008616844,1.4919,3685.1,3684.8,0.136]
[1754008617030,1.949,3685.1,3684.8,0.136]
[1754008617224,1.4919,3685.0,3684.8,0.136]
[1754008617427,1.949,3685.0,3684.8,0.136]
[1754008617626,1.4919,3684.9,3684.6,0.136]
[1754008617830,1.4919,3684.8,3684.2,4.311]
[1754008618028,1.949,3684.8,3684.3,0.136]
[1754008618554,1.4919,3684.7,3684.3,0.136]
[1754008619129,0.136,3684.9,3684.3,0.136]
[1754008619455,1.4919,3684.8,3684.3,0.136]
[1754008619655,0.136,3684.9,3684.3,0.136]
[1754008620006,0.4571,3685.5,3684.8,0.136]
[1754008620336,1.4919,3685.2,3684.8,0.136]
[1754008620577,1.4919,3685.2,3685.0,0.136]
[1754008620891,1.4919,3685.9,3685.1,0.136]
[1754008621199,1.7919,3685.9,3685.1,0.136]
[1754008621360,1.4919,3685.9,3685.0,2.71364525]
[1754008621697,30.4571,3685.8,3684.5,4.313]
[1754008621874,4.67383276,3685.7,3684.5,5.4217]
[1754008622187,0.136,3685.9,3685.4,0.136]
[1754008622406,1.4919,3686.4,3685.7,2.71318881]
[1754008622577,0.4571,3686.6,3685.6,2.71323966]
[1754008622578,0.5931,3686.6,3685.6,2.71323966]
[1754008622776,0.5931,3686.6,3686.1,0.136]
[1754008622956,1.4919,3686.5,3686.1,0.136]
[1754008623496,2.71157495,3687.9,3685.7,4.317]
[1754008623497,0.951438,3687.2,3686.3,0.136]
[1754008623648,0.25163693,3687.1,3686.3,0.136]
[1754008623850,0.25163693,3687.1,3686.7,0.136]
[1754008624048,1.4919,3687.0,3686.7,0.136]
[1754008624289,1.4919,3687.4,3686.7,0.136]
[1754008624517,0.25172632,3687.3,3686.7,0.136]
[1754008624807,0.25172632,3687.3,3687.1,0.136]
[1754008625299,1.4919,3687.3,3687.1,0.136]
[1754008627170,0.4571,3687.6,3687.1,0.136]
[1754008627377,1.4919,3687.2,3687.1,0.136]
[1754008628162,1.4919,3687.2,3686.7,4.312]
[1754008628163,1.4919,3687.8,3686.7,4.312]
[1754008628364,1.4919,3687.8,3687.4,0.1352]
[1754008628600,0.4571,3688.0,3687.4,0.1352]
[1754008628803,1.4919,3688.1,3687.8,0.1352]
[1754008629098,9.26915491,3689.9,3687.6,0.9831]
[1754008629099,0.815036,3689.1,3687.6,0.9831]
[1754008629405,0.1352,3688.8,3688.3,0.1352]
[1754008629603,0.1352,3688.8,3687.6,4.31]
[1754008629604,0.25154442,3688.9,3688.5,0.1352]
[1754008629760,1.6271,3689.5,3688.9,0.1352]
[1754008629959,0.25116341,3689.4,3689.0,0.1352]
[1754008630159,1.74306341,3689.4,3689.0,0.1352]
[1754008630393,1.4919,3689.4,3689.0,0.1352]
[1754008630662,1.4919,3689.3,3689.0,0.1352]
[1754008630985,1.4919,3689.2,3689.0,0.1352]
[1754008631300,30.0,3688.8,3685.9,1.5418]
[1754008631614,3.0,3687.9,3686.0,5.8588]
[1754008631779,33.0,3687.1,3685.0,8.0608]
[1754008631983,33.0,3687.1,3684.1,0.815037]
[1754008631984,33.0,3686.9,3684.8,4.32]
[1754008632286,3.0,3686.6,3684.7,4.32]
[1754008632488,1.4919,3686.5,3684.8,1.5418]
[1754008632911,4.4919,3686.9,3685.1,3.0]
[1754008633097,1.4919,3686.9,3684.8,3.0]
[1754008633263,1.4919,3686.9,3685.1,1.5418]
[1754008633468,1.4919,3686.9,3685.2,2.0918]
[1754008633713,3.0,3687.1,3685.3,1.5418]
[1754008634021,1.4919,3687.0,3685.3,1.5418]
[1754008634321,1.4919,3687.0,3685.5,0.55]
[1754008634607,1.4919,3687.0,3685.5,4.871]
[1754008635064,30.0,3686.8,3685.1,4.318]
[1754008635265,1.949,3686.7,3685.1,4.318]
[1754008635466,30.0,3686.5,3685.1,4.318]
[1754008635686,1.949,3686.4,3684.7,0.4331]
[1754008635903,3.0,3686.1,3684.8,4.321]
[1754008636104,1.949,3686.0,3684.8,4.321]
[1754008637627,1.4566,3685.9,3684.4,1.1087]
[1754008637793,2.71330977,3685.6,3684.4,4.32]
[1754008637988,4.63765156,3685.5,3684.4,4.32]
[1754008638225,1.4566,3685.4,3684.0,1.1087]
[1754008638391,1.4566,3685.4,3684.3,4.317]
[1754008639342,1.4566,3685.8,3684.4,0.55]
[1754008639643,1.4566,3685.8,3684.4,0.9923]
[1754008640220,1.4566,3685.8,3684.6,0.55]
[1754008640430,3.0,3685.3,3684.1,1.1087]
[1754008640734,1.9243,3685.2,3684.2,4.316]
[1754008641248,1.4566,3685.2,3684.9,0.136]
[1754008641755,0.136,3685.4,3684.9,0.136]
[1754008641922,1.4566,3685.1,3684.9,0.136]
[1754008642270,1.4566,3685.1,3684.2,4.316]
[1754008642271,1.4566,3685.6,3684.4,1.551]
[1754008642578,0.136,3685.6,3685.0,0.136]
[1754008642721,0.136,3686.0,3684.3,0.55]
[1754008642918,1.4566,3686.0,3685.5,0.136]
[1754008643152,1.4566,3685.9,3685.5,0.136]
[1754008643319,2.13033,3685.9,3685.5,0.136]
[1754008643533,0.4677,3685.8,3685.4,0.136]
[1754008643859,1.4566,3686.5,3685.8,0.136]
[1754008644023,1.4566,3686.5,3685.7,0.136]
[1754008644220,1.4566,3686.5,3686.1,0.136]
[1754008644524,0.136,3686.7,3686.1,0.136]
[1754008644525,1.9243,3686.4,3686.1,0.136]
[1754008644732,1.9243,3686.3,3686.1,0.136]
[1754008645057,0.136,3686.2,3685.7,0.136]
[1754008645461,1.9243,3686.1,3685.7,0.136]
[1754008645634,0.4677,3686.1,3685.7,0.136]
[1754008645843,1.4566,3686.0,3685.7,0.136]
[1754008646376,0.136,3686.2,3685.7,0.136]
[1754008646377,1.4566,3685.9,3685.7,0.136]
[1754008646539,0.136,3686.2,3685.7,0.136]
[1754008646540,1.9243,3685.8,3685.7,0.136]
[1754008646738,1.9243,3685.8,3685.0,4.311]
[1754008646954,1.9243,3685.8,3685.4,0.136]
[1754008647155,1.9243,3685.7,3685.4,0.136]
[1754008647469,1.9243,3685.6,3685.4,0.136]
[1754008647666,1.4566,3685.5,3685.4,0.136]
[1754008647864,1.4566,3686.0,3685.4,0.136]
[1754008648194,1.4566,3686.0,3685.6,0.136]
[1754008648475,1.4566,3686.5,3685.6,1.4953]
[1754008648631,1.4566,3686.5,3686.1,0.136]
[1754008648834,1.4566,3686.4,3686.1,0.136]
[1754008649130,0.4677,3686.6,3686.1,0.136]
[1754008649336,1.4566,3686.8,3685.3,1.603]
[1754008649337,1.4566,3686.5,3685.3,1.4953]
[1754008649567,1.4566,3686.5,3685.4,0.55]
[1754008649736,1.4566,3686.9,3686.4,0.136]
[1754008649950,1.4566,3686.8,3686.4,0.136]
[1754008650148,1.4566,3686.8,3685.8,5.8063]
[1754008650343,0.4677,3687.1,3686.6,0.136]
[1754008650548,1.4566,3687.2,3686.6,0.136]
[1754008650732,1.4566,3687.2,3686.2,3.15510137]
[1754008650733,1.4566,3687.2,3687.0,0.136]
[1754008651136,1.9243,3687.6,3687.0,0.136]
[1754008651472,0.5739663,3687.5,3687.0,0.136]
[1754008651656,0.6029,3687.6,3687.0,0.136]
[1754008651970,1.4566,3687.5,3687.0,0.136]
[1754008652158,0.815363,3687.7,3686.3,0.55]
[1754008652364,0.815363,3687.7,3687.6,0.1352]
[1754008652560,1.4566,3688.1,3687.6,0.1352]
[1754008653077,1.4566,3688.1,3687.8,0.1352]
[1754008653371,1.4566,3688.5,3688.0,0.1352]
[1754008653575,0.67159,3688.9,3688.3,0.1352]
[1754008653872,1.4566,3689.0,3688.3,0.1352]
[1754008654186,1.4566,3689.0,3688.8,0.1352]
[1754008654338,1.4566,3688.9,3688.8,0.1352]
[1754008654689,1.9243,3688.9,3687.7,0.55]
[1754008654979,0.6029,3688.9,3688.3,0.1352]
[1754008655189,1.9243,3688.8,3687.4,0.55]
[1754008655388,0.1352,3688.6,3688.1,0.1352]
[1754008655547,0.4677,3688.8,3687.8,0.55]
[1754008655736,0.4677,3688.8,3688.5,0.1352]
[1754008655938,33.0,3688.6,3686.4,4.31]
[1754008656137,30.0,3688.3,3686.4,4.31]
[1754008656335,1.9243,3688.2,3686.4,4.31]
[1754008656578,3.0,3688.4,3686.4,4.31]
[1754008656782,1.9243,3688.1,3686.5,0.55]
[1754008656985,1.9243,3688.0,3686.5,0.55]
[1754008657146,1.4566,3688.0,3686.5,4.4953]
[1754008657348,1.9243,3688.4,3686.6,2.0453]
[1754008657599,1.9243,3688.4,3686.7,2.0263]
[1754008657738,1.9243,3688.3,3686.9,0.55]
[1754008658088,1.9243,3688.3,3687.0,1.4763]
[1754008658297,1.9243,3688.3,3687.1,0.55]
[1754008658585,1.4566,3688.3,3687.3,0.55]
[1754008658735,0.4677,3688.7,3687.3,0.55]
[1754008658937,1.9243,3688.7,3687.5,0.55]
[1754008659159,1.4566,3688.7,3687.7,0.55]
[1754008659442,1.4566,3688.7,3687.7,5.898]
[1754008659869,1.4566,3688.7,3687.7,8.60968972]
[1754008660093,1.9243,3689.1,3687.9,0.55]
[1754008660240,1.4566,3689.1,3687.9,0.55]
[1754008660441,1.4566,3689.1,3688.2,0.55]
[1754008660861,1.4566,3689.1,3688.1,0.55]
[1754008661781,1.4566,3689.1,3688.1,3.26141717]
[1754008662077,0.4677,3689.5,3688.1,0.55]
[1754008662282,1.9243,3689.5,3688.5,0.55]
[1754008662477,1.9243,3689.5,3688.6,0.55]
[1754008662478,1.4566,3689.5,3688.6,0.55]
[1754008662842,1.4566,3689.5,3688.3,0.55]
[1754008663065,1.4566,3689.5,3688.5,0.55]
[1754008665974,0.1352,3689.9,3689.4,0.1352]
[1754008666163,0.4677,3689.8,3689.4,0.1352]
[1754008666364,30.0,3689.6,3688.7,4.308]
[1754008666681,1.8089,3689.5,3689.3,0.1352]
[1754008666983,1.8089,3689.4,3689.1,0.1352]
[1754008667153,1.8089,3689.3,3689.1,0.1352]
[1754008667355,1.8089,3689.2,3689.1,0.1352]
[1754008668286,1.3782,3689.2,3689.1,0.1352]
[1754008668675,1.3782,3689.5,3689.1,0.1352]
[1754008668876,1.3782,3689.8,3689.4,0.1352]
[1754008669050,1.8089,3689.7,3689.4,0.1352]
[1754008669256,1.3782,3689.7,3688.8,0.55]
[1754008669592,0.4307,3690.5,3689.3,0.55]
[1754008669752,1.3782,3690.6,3689.5,0.55]
[1754008670088,1.3782,3690.6,3689.7,0.55]
[1754008670262,1.3782,3690.6,3690.5,0.1352]
[1754008671387,1.8089,3690.6,3690.5,0.1352]
[1754008671686,0.1352,3691.0,3690.5,0.1352]
[1754008671888,1.8089,3690.9,3690.8,0.1352]
[1754008672091,1.8089,3690.9,3690.6,0.1352]
[1754008672263,1.8089,3690.9,3690.8,0.1352]
[1754008673164,0.1352,3691.3,3690.8,0.1352]
[1754008673476,1.8089,3691.2,3690.8,0.1352]
[1754008673676,4.84276524,3691.1,3689.2,1.034]
[1754008673988,4.84276524,3691.1,3687.7,2.91292653]
[1754008673989,0.1352,3690.1,3689.5,0.1352]
[1754008674189,0.1352,3690.1,3688.9,4.307]
[1754008674190,1.8089,3690.0,3688.9,4.307]
[1754008674485,1.8089,3690.4,3689.0,2.0408]
[1754008674787,1.3782,3690.3,3689.9,0.1352]
[1754008674968,1.8089,3690.3,3690.1,0.1352]
[1754008675165,1.3782,3690.2,3690.1,0.1352]
[1754008675367,1.3782,3690.4,3690.1,0.1352]
[1754008675691,0.1352,3690.7,3690.1,0.1352]
[1754008675895,1.3782,3690.6,3690.1,0.1352]
[1754008676187,0.4307,3690.8,3689.8,0.55]
[1754008676396,1.3782,3690.6,3690.5,0.1352]
[1754008676795,34.8089,3690.6,3690.5,0.1352]
[1754008676995,30.0,3690.5,3688.6,4.306]
[1754008677200,30.0,3690.5,3688.7,3.16778218]
[1754008677201,30.0,3690.4,3688.7,3.16778218]
[1754008677499,1.8089,3690.4,3688.8,0.55]
[1754008677699,0.4307,3690.4,3689.0,0.55]
[1754008678005,1.3782,3690.3,3688.9,0.55]
[1754008678502,0.4307,3690.2,3689.1,0.55]
[1754008678808,2.70914038,3691.3,3689.5,2.71034379]
[1754008678809,0.4307,3690.4,3689.5,2.71034379]
[1754008679307,1.3782,3690.6,3689.7,3.26024706]
[1754008679461,1.3782,3690.6,3689.7,0.55]
[1754008679665,1.3782,3690.6,3689.6,0.55]
[1754008679899,1.3782,3690.6,3689.9,2.71004939]
[1754008680121,1.3782,3690.6,3690.0,2.70997493]
[1754008680407,0.4307,3690.8,3690.0,2.71001271]
[1754008680612,1.3782,3690.9,3690.1,0.55]
[1754008680818,1.3782,3690.9,3690.2,2.70987934]
[1754008681116,1.3782,3690.9,3690.0,0.55]
[1754008681419,1.3782,3690.9,3690.3,2.7097569]
[1754008681619,0.4307,3691.2,3690.3,2.7097569]
[1754008681768,4.306,3691.8,3691.0,2.70928913]
[1754008681769,1.3782,3691.8,3691.0,2.70928913]
[1754008681967,1.3782,3691.8,3690.7,1.0068]
[1754008682222,1.3782,3691.8,3691.0,0.55]
[1754008682375,1.3782,3691.8,3690.7,1.0068]
[1754008682376,1.3782,3691.8,3690.9,0.55]
[1754008682890,0.4307,3691.7,3690.8,4.856]
[1754008683096,0.4307,3691.7,3691.0,2.70928154]
[1754008683298,0.4307,3691.7,3690.8,4.856]
[1754008683499,1.3782,3691.6,3690.9,4.306]
[1754008683874,1.3782,3691.6,3690.6,0.55]
[1754008683875,0.46456157,3691.5,3690.5,4.306]
[1754008684075,1.56247616,3691.4,3690.5,4.306]
[1754008684318,1.56247616,3691.4,3690.1,2.70993933]
[1754008684500,0.4307,3691.3,3690.2,4.306]
[1754008684697,1.3782,3691.2,3690.2,4.306]
[1754008685310,1.3782,3691.2,3690.3,0.55]
[1754008685815,1.3782,3691.2,3690.3,3.25979362]
[1754008686180,1.3782,3691.2,3690.3,0.55]
[1754008686377,0.03385423,3692.3,3690.4,0.4568]
[1754008686583,1.3782,3692.2,3691.2,0.55]
[1754008686812,1.3782,3692.2,3691.8,0.1352]
[1754008687013,0.62511,3692.1,3691.8,0.1352]
[1754008687310,1.8089,3692.1,3691.8,0.1352]
[1754008687511,0.4307,3692.0,3690.7,4.312]
[1754008687712,3.0,3691.8,3690.0,1.1399]
[1754008687911,3.03385882,3691.8,3690.6,4.312]
[1754008688073,1.8089,3691.7,3690.6,4.312]
[1754008688419,1.9441,3691.6,3691.0,0.1352]
[1754008688799,1.8089,3691.5,3691.0,0.1352]
[1754008689111,0.1352,3691.2,3690.7,0.1352]
[1754008689515,0.1352,3691.2,3689.7,3.55]
[1754008689516,1.84276524,3691.1,3689.4,3.16725966]
[1754008689815,0.1352,3690.8,3690.3,0.1352]
[1754008690116,1.8089,3690.7,3690.2,0.1352]
[1754008690314,1.8089,3690.6,3690.2,0.1352]
[1754008690479,1.8089,3690.5,3690.2,0.1352]
[1754008690678,1.8089,3690.4,3690.2,0.1352]
[1754008690881,0.4307,3691.0,3689.5,0.4568]
[1754008691094,0.1352,3690.9,3690.3,0.1352]
[1754008691414,0.1352,3690.7,3690.2,0.1352]
[1754008691778,1.8089,3690.6,3690.2,0.1352]
[1754008692113,0.1352,3691.0,3690.5,0.1352]
[1754008692292,0.25162617,3691.5,3690.5,0.1352]
[1754008692613,1.3782,3690.9,3690.1,2.7098966]
[1754008692818,1.8089,3691.4,3690.7,0.1352]
[1754008692999,0.1352,3691.3,3690.7,0.1352]
[1754008693200,1.9441,3691.4,3690.1,0.55]
[1754008693404,1.8089,3691.4,3691.0,0.1352]
[1754008693609,1.3782,3691.4,3691.0,0.1352]
[1754008693805,1.8089,3691.3,3691.0,0.1352]
[1754008693982,1.8089,3691.2,3691.0,0.1352]
[1754008694185,1.3782,3691.7,3690.8,2.70943518]
[1754008694502,1.3782,3691.7,3691.1,0.1352]
[1754008694503,0.25185212,3691.6,3691.1,0.1352]
[1754008694703,1.3782,3692.0,3691.5,0.1352]
[1754008694903,1.63012332,3691.9,3691.5,0.1352]
[1754008695104,0.25192332,3691.8,3691.5,0.1352]